Cogmind - Beta 16 @@@ ROGUE MODE // 2026.01.12 @ 15:18:56 // Winter2019/RPGLIKE Player: Gallgagger Result: Destroyed by S-10 Pest with Light Assault Rifle Performance ------------- Evolutions (0) 0 Regions Visited (4) 800 Robots Destroyed (47) 235 Value Destroyed (1286) 1286 Prototype IDs (27) 540 Alien Tech Used (0) 0 Bonus (234) 234 TOTAL SCORE: 3095 Bonus ------- High Alert Combat Kills 96 Aligned with FarCom 300 Friendly Fire -162 Cogmind --------- Core Integrity 0/700 Matter 296/300 Energy 125/125 System Corruption 0% Temperature Cool (0) Movement Walking (120) Location -9/Mines Parts ------- > --- POWER (1) -------- Light Ion Engine > --- PROPULSION (3) --- Advanced Myomer Leg Advanced Myomer Leg Flight Unit > --- UTILITY (3) ------ Seismic Detector Advanced Weapon Cycler Hardened Medium Armor Plating > --- WEAPON (3) ------- Minigun > --- INVENTORY (4) ---- Flight Unit Experimental Heat Sink Assault Rifle Peak State ------------ > --- POWER ------------ Light Ion Engine > --- PROPULSION ------- Advanced Myomer Leg Advanced Myomer Leg Flight Unit > --- UTILITY ---------- Seismic Detector Advanced Weapon Cycler Hardened Medium Armor Plating > --- WEAPON ----------- Assault Rifle Minigun > --- INVENTORY -------- Flight Unit Experimental Heat Sink [Rating: 34] Favorites ----------- Power Light Ion Engine Engine Light Ion Engine Propulsion Flight Unit Leg Advanced Myomer Leg Wheel Compact Wheel Flight Unit Flight Unit Utility Seismic Detector Device Seismic Detector Protection Light Armor Plating Weapon Assault Rifle Energy Gun Particle Gun Ballistic Gun Assault Rifle Launcher Grenade Launcher Special Melee Weapon Datajack Build | -11 -10 -10 -10 -9 ------- Run | Yrd Mat Min Exi Min Slots Evolved 6 | 3 3 . . . Power . | . . . . . Propulsion 2 | 1 1 . . . Utility 2 | 1 1 . . . Weapon 2 | 1 1 . . . Parts Attached 20 | 6 5 4 5 . Power 1 | 1 . . . . Engine 1 | 1 . . . . Core . | . . . . . Reactor . | . . . . . Propulsion 5 | 1 2 . 2 . Treads . | . . . . . Leg 2 | . . . 2 . Wheel 1 | 1 . . . . Hover . | . . . . . Flight 2 | . 2 . . . Utility 7 | 2 1 1 3 . Device 4 | 2 . . 2 . Storage . | . . . . . Processor . | . . . . . Hackware . | . . . . . Protection 3 | . 1 1 1 . Artifact . | . . . . . Weapon 7 | 2 2 3 . . Energy Gun 1 | . . 1 . . Energy Cannon . | . . . . . Ballistic Gun 4 | 2 1 1 . . Ballistic Cannon . | . . . . . Launcher 1 | . . 1 . . Special Weapon . | . . . . . Impact Weapon . | . . . . . Slashing Weapon . | . . . . . Piercing Weapon . | . . . . . Special Melee Weapon 1 | . 1 . . . Unidentified Prototypes 2 | . . . 2 . Parts Lost 2 | . . . 2 . Power . | . . . . . Propulsion . | . . . . . Utility 1 | . . . 1 . Weapon 1 | . . . 1 . Highest Loss Streak 2 | . . . 2 . To Critical Strikes . | . . . . . Average Backups . | . . . . 3 Power . | . . . . . Propulsion . | . . . . 1 Utility . | . . . . 1 Weapon . | . . . . 1 Tool/Special . | . . . . . Unused Backups 4 | . . . 4 . Power 3 | . . . 3 . Propulsion . | . . . . . Utility 1 | . . . 1 . Weapon . | . . . . . Tool/Special . | . . . . . Average Slot Usage (%) 90 | . 94 90 82 80 Engine 12 | . 13 10 10 10 Flight 21 | . 23 20 19 10 Device 22 | . 26 20 13 20 Protection 5 | . . 10 12 10 Energy Gun 1 | . . 5 . . Ballistic Gun 19 | . 21 14 19 10 Special Melee Weapon 6 | . 6 10 6 . Peak Build Rating 34 | 5 9 13 34 33 Average Rating 8 | 3 6 9 14 33 On Entrance 12 | . 5 9 13 33 Avg Prop Armor Cover (%) 2 | . . . 2 . Naked Turns . | . . . . . Heaviest Build 21 | 8 12 14 21 . Greatest Support 70 | 21 13 18 70 . Greatest Overweight (x) 1 | . . . 1 . Average Overweight (x) . | . . . . . Largest Inventory Capacity 4 | 1 1 4 4 4 Average Capacity 1 | 1 1 3 4 4 Most Carried 4 | . 1 4 4 3 Average Carried 1 | . . 2 1 3 Final Capacity 4 | 1 3 4 4 4 Final Carried 4 | . 1 4 3 3 Class Distribution -------------------- 77% | Scavenger-Mutant 22% | Mutant Dominant Class ---------------- Scavenger-Mutant | -10/Materials Scavenger-Mutant | -10/Mines Mutant | -10/Exiles Mutant | -9/Mines Resources | -11 -10 -10 -10 -9 ----------- Run | Yrd Mat Min Exi Min Matter Collected 1406 | 272 491 211 432 . Remotely 722 | 20 491 211 . . Salvage Created 1496 | 73 1024 153 246 . Parts 108 | 6 70 27 5 . Haulers Intercepted 2 | . 2 . . . Recyclers Shooed . | . . . . . Parts Field Recycled . | . . . . . Retrieved Matter . | . . . . . Parts Self-Destructed . | . . . . . Prevented . | . . . . . Parts Restored . | . . . . . Kills | -11 -10 -10 -10 -9 ------- Run | Yrd Mat Min Exi Min Combat Hostiles Destroyed 43 | . 29 9 5 . Guns 43 | . 29 9 5 . Classes Destroyed 9 | 2 4 1 2 . Builder 1 | . . 1 . . Tunneler 1 | 1 . . . . Hauler 2 | . 2 . . . Recycler 1 | 1 . . . . Operator 1 | . 1 . . . Swarmer 12 | . 6 6 . . Grunt 25 | . 23 2 . . Zionite 1 | . . . 1 . Assembled 4 | . . . 4 . Thug 1 | . . 1 . . Best Kill Streak 11 | 2 11 6 4 . Combat Bots Only 7 | . 7 6 4 . Max Kills in Single Turn 2 | 1 2 1 1 . Gunslinging 1 | . 1 . . . Exploded . | . . . . . Melee . | . . . . . Uniques/NPCs Destroyed 2 | . . 1 1 . YI-UF0 (-10/Mines) 8R-AWN (-10/Exiles) Combat | -11 -10 -10 -10 -9 -------- Run | Yrd Mat Min Exi Min Hostile Shots Fired 264 | . 123 46 92 3 Missed 75 | . 39 13 22 1 Hits 189 | . 84 33 70 2 Melee 1 | . . . 1 . Projectile 188 | . 84 33 69 2 AOE 2 | . . 2 . . Critical Strikes 25 | . . . 25 . Damage Taken 2602 | . 1007 385 1194 16 Core 1902 | . 787 292 811 12 Absorbed by Shields . | . . . . . Redirected to Core 1581 | . 645 211 713 12 Core Remaining (%) 100 | 100 . . . . Volleys Fired 220 | 3 110 37 69 1 Largest 2 | 2 2 2 2 1 Hottest 85 | 40 40 85 45 25 Shots Fired 369 | 6 201 60 101 1 Gun 366 | 6 201 57 101 1 Cannon . | . . . . . Launcher 3 | . . 3 . . Special . | . . . . . Kinetic 362 | 6 201 53 101 1 Thermal 4 | . . 4 . . Explosive 3 | . . 3 . . Electromagnetic . | . . . . . Robot Hit Streak 29 | 5 21 12 29 14 Robot Miss Streak 3 | . 2 3 2 . Penetration Max . | . . . . . Secondary Targets 6 | . 2 2 2 . Max Gunslinging Chain 1 | . 1 1 1 . Shots Hit Robots 306 | 5 169 42 89 1 Core Hits 109 | 3 64 19 23 . Critical Kills 1 | . 1 . . . Critical Parts Destroyed 1 | . . . 1 . Critical Strikes 2 | . 1 . 1 . Destroy 2 | . 1 . 1 . Melee Attacks 3 | . 3 . . . Impact . | . . . . . Slashing . | . . . . . Piercing . | . . . . . Sneak Attacks 3 | . 3 . . . Combat Hostiles . | . . . . . Follow-up Attacks . | . . . . . Damage Inflicted 3770 | 58 1816 479 1401 16 Guns 3770 | 58 1816 479 1401 16 Cannons . | . . . . . Explosions . | . . . . . Melee . | . . . . . Ramming . | . . . . . Kinetic 3740 | 58 1816 449 1401 16 Thermal 30 | . . 30 . . Explosive . | . . . . . Electromagnetic . | . . . . . Impact . | . . . . . Slashing . | . . . . . Piercing . | . . . . . Highest Corruption . | . . . . . Average Corruption . | . . . . . Corruption Purged . | . . . . . Corruption Blocked . | . . . . . Overload Shots . | . . . . . Overflow Damage . | . . . . . Projectiles . | . . . . . Explosions . | . . . . . Melee . | . . . . . Knockbacks . | . . . . . Impact . | . . . . . Kinetic . | . . . . . Secondary . | . . . . . Self-Inflicted Damage . | . . . . . Shots . | . . . . . Rammed . | . . . . . Targets Rammed . | . . . . . Kicked . | . . . . . Crushed . | . . . . . Highest Temperature 115 | . . 1 115 . Average Temperature 55 | . . 1 60 . Received Heat Transfer 771 | . 429 102 240 . Siege Activations . | . . . . . Martial Activations . | . . . . . Shielding Activations . | . . . . . Robots Disrupted . | . . . . . Combat Hostiles . | . . . . . Robots Corrupted . | . . . . . Combat Hostiles . | . . . . . Parts Fried . | . . . . . Impact Corruptions . | . . . . . Robots Melted . | . . . . . Combat Hostiles . | . . . . . Parts Melted . | . . . . . Heat Transferred 74 | . . 74 . . Parts Sabotaged . | . . . . . Parts Stolen . | . . . . . Parts Stripped . | . . . . . Power Chain Reactions . | . . . . . Alert | -11 -10 -10 -10 -9 ------- Run | Yrd Mat Min Exi Min Maximum Alert Level 2 | . 2 1 . . Low Security (%) 10 | 100 11 . . 100 Level 1 39 | . 20 100 . . Level 2 50 | . 68 . . . Level 3 . | . . . . . Level 4 . | . . . . . Level 5 . | . . . . . High Security . | . . . . . Max Security . | . . . . . Peak Influence 645 | 10 645 386 . . Initial 251 | . . 251 . . Average 364 | 2 394 314 . . Influence Increases 1331 | 10 1107 214 . . Destroy 0b10 Robot/C 740 | . 580 160 . . Destroy 0b10 Robot/NC 30 | 10 15 5 . . Destroy Leader 184 | . 154 30 . . Trap Triggered on 0b10 40 | . 40 . . . Successful Hack 13 | . 13 . . . Select Force Hacks 260 | . 260 . . . Destroy Structure 4 | . . 4 . . Lose Combat Pursuer 60 | . 45 15 . . Influence Decreases 1331 | 10 462 608 251 . Entered New Map 645 | . . 394 251 . Time Decay 686 | 10 462 214 . . Squads Dispatched 12 | . 12 . . . Investigation 10 | . 10 . . . Extermination . | . . . . . Reinforcement 2 | . 2 . . . Assault . | . . . . . Garrison . | . . . . . Intercept . | . . . . . Searches Triggered . | . . . . . Construction Impeded . | . . . . . Haulers Reinforced . | . . . . . Active Scanning Responses . | . . . . . Cargo Convoy Interrupts . | . . . . . Stealth | -11 -10 -10 -10 -9 --------- Run | Yrd Mat Min Exi Min Distress Signals 1 | . 1 . . . Communications Jammed . | . . . . . Distress Signals . | . . . . . Times Spotted 66 | . 43 12 7 4 Peak Tracking Total 12 | . 6 4 12 . Tactical Retreats 6 | . 1 3 2 . Traps | -11 -10 -10 -10 -9 ------- Run | Yrd Mat Min Exi Min Traps Triggered 2 | . 2 . . . Indirectly . | . . . . . Trap Hack Attempts 48 | . 48 . . . Triggered . | . . . . . Disarmed . | . . . . . Reprogrammed 6 | . 6 . . . Reused 9 | . 4 3 2 . Traps Extracted . | . . . . . Installed 5 | . . 3 2 . Triggered 4 | . 4 . . . Most Traps Carried 3 | . . 3 2 . Machines | -11 -10 -10 -10 -9 ---------- Run | Yrd Mat Min Exi Min Machines Disabled 2 | . . . 2 . Max in Single Turn 1 | . . . 1 . Machines Repaired . | . . . . . Machines Dismantled . | . . . . . Machines Sabotaged 4 | . 4 . . . Overloaded Fab Kills . | . . . . . Hacking | -11 -10 -10 -10 -9 --------- Run | Yrd Mat Min Exi Min Machines Accessed 11 | . 9 1 1 . Terminals 6 | . 6 . . . Fabricators . | . . . . . Repair Stations 1 | . 1 . . . Recycling Units 2 | . 2 . . . Scanalyzers . | . . . . . Garrison Access . | . . . . . Total Hacks 20 | . 18 1 1 . Successful 14 | . 12 1 1 . Failed 6 | . 6 . . . Catastrophic . | . . . . . Database Lockouts . | . . . . . Manual 17 | . 16 . 1 . Terminals 15 | . 15 . . . Fabricators . | . . . . . Repair Stations 1 | . 1 . . . Recycling Units 2 | . 2 . . . Scanalyzers . | . . . . . Garrison Access . | . . . . . Terminal Hacks 5 | . 3 1 1 . Record 1 | . 1 . . . Robot Analysis 1 | . 1 . . . Prototype ID Bank 1 | . 1 . . . Open Door 1 | . . 1 . . Proto ID Catalog 1 | . . . 1 . Fabricator Hacks . | . . . . . Repair Station Hacks . | . . . . . Recycling Unit Hacks . | . . . . . Scanalyzer . | . . . . . Garrison Access Hacks . | . . . . . Unauthorized Hacks 9 | . 9 . . . Terminals 6 | . 6 . . . Sabotage 5 | . 5 . . . Search 1 | . 1 . . . Fabricators . | . . . . . Repair Stations 1 | . 1 . . . Patch 1 | . 1 . . . Recycling Units 2 | . 2 . . . Tunnel 2 | . 2 . . . Scanalyzers . | . . . . . Garrison Access . | . . . . . Data Cores Recovered . | . . . . . Used . | . . . . . Hacking Detections 3 | . 3 . . . Full Trace Events . | . . . . . Feedback Events . | . . . . . Feedback Blocked . | . . . . . Robot Schematics Acquired . | . . . . . Robots Built . | . . . . . Authchips . | . . . . . Time . | . . . . . Total Robot Build Rating . | . . . . . Part Schematics Acquired . | . . . . . Parts Built . | . . . . . Authchips . | . . . . . Time . | . . . . . Total Part Build Rating . | . . . . . Part Studies Acquired . | . . . . . Parts Repaired . | . . . . . Time . | . . . . . Parts Recycled . | . . . . . Recycled Matter . | . . . . . Retrieved Matter . | . . . . . Retrieved Components . | . . . . . Parts Scanalyzed . | . . . . . Part Schematics Acquired . | . . . . . Parts Damaged . | . . . . . Bothacking | -11 -10 -10 -10 -9 ------------ Run | Yrd Mat Min Exi Min Used RIF Installer . | . . . . . Robots Hacked 2 | . 2 . . . Non-combat 2 | . 2 . . . Combat . | . . . . . Robot Hacks Applied 3 | . 3 . . . parse_system 3 | . 3 . . . Relay Couplers Released . | . . . . . Fabnet Peak Effective % . | . . . . . Robots Rewired . | . . . . . Allies Hacked . | . . . . . Hacks Repelled . | . . . . . Allies | -11 -10 -10 -10 -9 -------- Run | Yrd Mat Min Exi Min Total Allies . | . . . . . Largest Group . | . . . . . Highest-Rated Group . | . . . . . Highest-Rated Ally . | . . . . . Total Orders . | . . . . . Ally Attacks . | . . . . . Total Damage . | . . . . . Kills . | . . . . . Allies Corrupted . | . . . . . Allies Melted . | . . . . . Intel | -11 -10 -10 -10 -9 ------- Run | Yrd Mat Min Exi Min Active Infowar (turns) 2246 | 9 1354 445 437 1 Seismic 2246 | 9 1354 445 437 1 Robot Analysis Total 1 | . 1 . . . Derelict Logs Recovered 1 | . . 1 . . Drone Launches . | . . . . . Drone Recoveries . | . . . . . Exploration | -11 -10 -10 -10 -9 ------------- Run | Yrd Mat Min Exi Min Turns Passed 2284 | 47 1354 445 437 1 Spaces Moved 2124 | 50 838 709 527 . Core 101 | 41 60 . . . Treads . | . . . . . Legs 18 | . . . 18 . Wheels 9 | 9 . . . . Hover . | . . . . . Flight 1996 | . 778 709 509 . Fastest Speed 37 | 50 37 37 37 . Average Speed 39 | 59 37 37 44 . Slowest Speed 120 | 100 50 37 120 . Overloaded Moves . | . . . . . Propulsion Burnouts . | . . . . . Robots Hopped 30 | . 20 9 1 . Potential Cave-ins . | . . . . . Cave-ins Triggered . | . . . . . Exploration Rate (%) 49 | 2 96 82 63 5 Regions Visited 4 Branch Regions 3 Pre-discovered Areas 3 | . 2 1 . . Known Exits Taken . | . . . . . Unknown Exits Taken 4 | 1 1 1 1 . Scrap Searched 1 | . . 1 . . Spaces Dug . | . . . . . Terrain Destroyed 21 | . . 21 . . Melee . | . . . . . Projectile . | . . . . . AOE 21 | . . 21 . . Terrain Rammed . | . . . . . Walls Destroyed . | . . . . . Machines Disabled . | . . . . . Actions | -11 -10 -10 -10 -9 --------- Run | Yrd Mat Min Exi Min Total 3197 | 59 1665 826 646 1 Wait 699 | . 633 45 21 . Move 2061 | 49 797 691 524 . Hop 29 | . 20 8 1 . Pick Up 15 | . 1 8 6 . Fast Attach 16 | 6 6 1 3 . Attach . | . . . . . Detach 1 | . . . 1 . Swap 9 | . 1 5 3 . Drop 18 | 1 . 7 10 . Fire 220 | 3 110 37 69 1 Melee 3 | . 3 . . . Ram . | . . . . . Kick . | . . . . . Crush . | . . . . . Escape Stasis . | . . . . . Rewire . | . . . . . Trap 53 | . 48 3 2 . Miscellaneous 73 | . 46 21 6 . Route ------- -11/Scrapyard -10/Materials (discovered 5 exits: [*Mat x3] / *Min / [*Sub]) -10/Mines (discovered 3 exits: [*Mat] / *Exi / [*Sub]) -10/Exiles -9/Mines History --------- Turn | Location | Event 1 | -11/Scrapyard | Upgraded with Propulsion slot (x1) 1 | -11/Scrapyard | Upgraded with Utility slot (x1) 1 | -11/Scrapyard | Upgraded with Weapon slot (x1) 5 | -11/Scrapyard | Discovered new exit (range 16) 48 | -11/Scrapyard | Entered Materials 178 | -10/Materials | Discovered new exit (range 8) 193 | -10/Materials | Destroyed 7 combat bots 257 | -10/Materials | Reached level 2 431 | -10/Materials | Discovered new exit (range 15) 511 | -10/Materials | Build established: Scavenger-Mutant 558 | -10/Materials | Reached level 3 577 | -10/Materials | Discovered new exit (range 4) 1207 | -10/Materials | Discovered new exit (range 9) 1225 | -10/Materials | Upgraded with Propulsion slot (x1) 1225 | -10/Materials | Upgraded with Utility slot (x1) 1225 | -10/Materials | Upgraded with Weapon slot (x1) 1299 | -10/Materials | Discovered new exit (range 9) 1316 | -10/Materials | Reached level 4 1402 | -10/Materials | Entered Mines 1438 | -10/Mines | Found a hidden stash of uninstalled traps 1452 | -10/Mines | Reached level 5 1469 | -10/Mines | Discovered new exit (range 6) 1572 | -10/Mines | YI-UF0 nonchalantly dropped a Grenade Launcher on the ground 1757 | -10/Mines | Destroyed YI-UF0 1780 | -10/Mines | Learned location of Storage (-8) 1795 | -10/Mines | Met a Derelict who couldn't figure out how to use a Trap Extractor 1823 | -10/Mines | Deemed a non-threat by the Exiles lab entrance 1827 | -10/Mines | Discovered new exit (range 11) 1845 | -10/Mines | Discovered new exit (range 5) 1847 | -10/Mines | Entered Exiles 1856 | -10/Exiles | Met 8R-AWN 1863 | -10/Exiles | Met EX-HEX 1873 | -10/Exiles | Met EX-BIN 1877 | -10/Exiles | Aligned with FarCom system 1878 | -10/Exiles | Given EX-Vault access code 1889 | -10/Exiles | Opened EX-Vault 1898 | -10/Exiles | Warned to stay clear of 0b10 Research branches 1910 | -10/Exiles | Met EX-DEC 2002 | -10/Exiles | Attacked by the Exiles 2113 | -10/Exiles | Core integrity fell below 50% 2131 | -10/Exiles | Core integrity fell below 20% 2159 | -10/Exiles | Discovered new exit (range 15) 2232 | -10/Exiles | Destroyed 8R-AWN 2284 | -10/Exiles | Entered Mines 2285 | -9/Mines | Destroyed by S-10 Pest with Light Assault Rifle Last Messages --------------- 02220_ Penetrated by HV Slug. 02220_ HV Slug penetrates Wall. 02224_ Wall collapses. 02224_ Penetrated by HV Slug. 02224_ HV Slug penetrates Wall. 02227_ Penetrated by HV Slug. 02227_ HV Slug penetrates Wall. 02232_ 8R-AWN destroyed. 02236_ Acquired 153 matter. 02237_ Acquired Prototype Device. 02237_ Identified Exp. Heat Sink. 02238_ Acquired 10 matter. 02241_ Acquired Adv. Weapon Cycler. 02243_ Acquired 10 matter. 02259_ Acquired Prototype Leg. 02259_ Identified Adv. Myomer Leg. 02260_ Acquired 10 matter. 02265_ Acquired 20 matter. LOCATION=UNKNOWN GOAL=ESCAPE Map ----- +----------------------------------------------------+ | ?????????????????????????????????????????????????? | | ?????????????????????????????????????????????????? | | ?????????????????????????????????????????????????? | | ?????????????????????????????????????????????????? | | ?????????????????????????????????????????????????? | | ?????????????????????????????????????????????????? | | ?????????????????????????????????????????????????? | | ?????????????????????????????????????????????????? | | ?????????????????????????????????????????????????? | | ?????????????????????????????????????????????????? | | ?????????????????????????????????????????????????? | | ?????????????????????????????????????????????????? | | ?????????????????????????????????????????????????? | | ?????????????????????????????????????????????????? | | ???????????????????????####??????????????????????? | | ???????????????????????# ??????????????????????? | | ???????????????????????# ??????????????????????? | | ???????????????????????# #??????????????????????? | | ???????????????????????# #??????????????????????? | | ??????????????????????? ##?????????????????????? | | ???????????????????????# ###???????????????????? | | ???????????????????????# ##??????????????????? | | ???????????????????????# #??????????????????? | | ???????????????????????# #??????????????????? | | ??????????????????????## #???????????????????? | | ??????????????????????#s @ #?????????????????????? | | ?????????????????????# s ##?????????????????????? | | ????????????????????# s #??????????????????????? | | ????????????????????#s #??????????????????????? | | ??????????????????? #??????????????????????? | | ?????????????????? ##??????????????????????? | | ?????????????????### ????????????????????????? | | ???????????????????## ????????????????????????? | | ????????????????????# ????????????????????????? | | ????????????????????## ????????????????????????? | | ?????????????????????## ????????????????????????? | | ??????????????????????## ????????????????????????? | | ???????????????????????# ????????????????????????? | | ??????????????????????? ?????????????????????????? | | ??????????????????????? ?????????????????????????? | | ??????????????????????? ?????????????????????????? | | ??????????????????????? ?????????????????????????? | | ?????????????????????????????????????????????????? | | ?????????????????????????????????????????????????? | | ?????????????????????????????????????????????????? | | ?????????????????????????????????????????????????? | | ?????????????????????????????????????????????????? | | ?????????????????????????????????????????????????? | | ?????????????????????????????????????????????????? | | ?????????????????????????????????????????????????? | +----------------------------------------------------+ Best States ------------- Heat Dissipation 69 Energy Generation 10 Energy Capacity 125 Matter Stores 300 Matter Capacity 300 Sight Range 17 Terrain Scan Density 10 Armor Coverage 375 Resistance: EM 15 Weapon Cycling 25 Evasion (%) 62 Item Schematics ----------------- None Robot Schematics ------------------ None Fabricated ------------ Nothing Repaired ---------- Nothing Studied --------- None Alien Tech Used ----------------- None Achievements -------------- None Challenges ------------ None RPGLIKE | -11 -10 -10 -10 -9 --------- Run | Yrd Mat Min Exi Min Levels Raised 4 | . 3 1 . . XP Earned 9734 | 3000 5228 1263 243 . XP Spent 8970 | 2960 4350 1600 60 . Upgrades 21 | 10 7 2 2 . Propulsion Slot 2 | 1 1 . . . Utility Slot 2 | 1 1 . . . Weapon Slot 2 | 1 1 . . . Core Integrity 2 | . . . 2 . Heat Dissipation 3 | 3 . . . . Mass Support 2 | 1 . 1 . . Inventory Capacity 4 | 1 2 1 . . Sight Range 1 | . 1 . . . Ranged Accuracy 3 | 2 1 . . . Protomatter Created 554 | . 361 193 . . Integrity Restored 1503 | . 940 428 135 . Core 1201 | . 729 337 135 . Parts 302 | . 211 91 . . Protomatter Decayed . | . . . . . Game ------ Seed MissileJammingScanner Manual? 1 Play Time 00:21:51 Cumulative 543.8 hours Start 2026.01.12 @ 14:56:51 End 2026.01.12 @ 15:18:56 Sessions 1 Manual Loads 0 Difficulty Rogue Special Mode Winter2019/RPGLIKE Game No. 203 Rogue 49 Adventurer 154 Explorer 0 Win Type - Total 20 Types 4/4/3/3/2/1/0/1/1/1 Lore% 95 Gallery% 88 Achievement% 61 Wizard Run 0 Options --------- Layout 0 ASCII 0 Keyboard 0 Movement Numpad Keybinds 0 Fullscreen 2 Font 18/SmallcapsGlow Map View 76x50 Zoom Use 0% Tactical HUD 1 Map Filters NONE Filters NONE Steam 1 RUN: e53cb3cc-8c9d-4424-8d74-cdc8dcd2a9ae